bitfinex-derivatives/quotes_SOLF0:USTF0_20250518
["timestamp","ask_amount","ask_price","bid_price","bid_amount"]
[1747577011901,152.92155825,172.88,172.84,5.7836]
[1747577012100,152.92155825,172.88,172.79,93.08]
[1747577012312,5.7827,172.88,172.79,93.08]
[1747577012509,5.7827,172.88,172.84,5.7837]
[1747577012801,89.24,172.91,172.8,4.69651601]
[1747577013008,89.24,172.91,172.83,5.7838]
[1747577013311,5.7832,172.86,172.83,5.7838]
[1747577013707,89.24,172.91,172.8,4.69651601]
[1747577013909,5.783,172.87,172.81,4.69651601]
[1747577014110,89.24,172.91,172.83,5.7839]
[1747577014415,5.783,172.87,172.83,5.7839]
[1747577014713,89.24,172.91,172.81,4.69651601]
[1747577014904,1.8785,172.9,172.81,4.69651601]
[1747577015413,1.9715,172.89,172.82,4.69651601]
[1747577015712,5.7842,172.83,172.82,4.69651601]
[1747577016409,94.2442,172.83,172.82,1.601e-05]
[1747577016606,88.46,172.83,172.73,1.9451]
[1747577016998,5.7848,172.82,172.77,5.7861]
[1747577017203,1.9598,172.85,172.73,1.9451]
[1747577017407,91.0798,172.85,172.73,1.9451]
[1747577017607,5.7841,172.84,172.76,90.02]
[1747577018509,5.7841,172.84,172.79,5.7852]
[1747577018808,5.7841,172.84,172.76,90.02]
[1747577020012,5.7835,172.85,172.76,90.02]
[1747577020914,5.7835,172.85,172.8,5.7848]
[1747577021210,5.7832,172.86,172.76,90.02]
[1747577021607,5.7832,172.86,172.82,5.7842]
[1747577022207,5.7835,172.85,172.81,5.7847]
[1747577022507,5.7835,172.85,172.76,90.02]
[1747577022705,88.04,172.88,172.76,90.02]
[1747577023010,88.04,172.88,172.82,5.7842]
[1747577023507,88.04,172.88,172.76,90.02]
[1747577023708,88.04,172.88,172.76,177.48]
[1747577024507,5.7845,172.82,172.76,177.48]
[1747577024811,88.04,172.88,172.76,177.48]
[1747577025409,88.04,172.88,172.76,90.02]
[1747577025601,5.7844,172.83,172.78,5.7856]
[1747577025805,8.49259011,172.87,172.76,90.02]
[1747577026700,88.04,172.88,172.76,90.02]
[1747577026900,88.04,172.88,172.8,5.7851]
[1747577027107,88.04,172.88,172.76,90.02]
[1747577027719,87.8,172.88,172.76,98.51259011]
[1747577028118,87.8,172.88,172.76,90.02]
[1747577028622,5.7843,172.83,172.79,5.7854]
[1747577029117,10.46409011,172.89,172.76,90.02]
[1747577029319,90.28,172.87,172.76,90.02]
[1747577029816,5.7848,172.82,172.78,5.7856]
[1747577030416,5.7848,172.81,172.78,5.7856]
[1747577030716,90.28,172.87,172.76,90.02]
[1747577032422,8.49259011,172.86,172.76,90.02]
[1747577032919,8.49259011,172.86,172.76,95.8065]
[1747577033319,5.7851,172.81,172.76,95.8065]
[1747577033520,5.7851,172.81,172.77,5.7861]
[1747577035022,5.7853,172.8,172.76,95.8064]
[1747577035230,5.7853,172.8,172.76,90.02]
[1747577035525,5.7855,172.79,172.76,90.02]
[1747577036123,5.7853,172.8,172.76,95.8065]
[1747577036319,3.8888,172.84,172.76,90.02]
[1747577036622,3.8888,172.84,172.78,5.7858]
[1747577037325,3.8888,172.84,172.77,5.786]
[1747577037524,5.785,172.81,172.76,90.02]
[1747577038024,5.785,172.81,172.77,5.7861]
[1747577038422,5.7853,172.8,172.77,5.7861]
[1747577038622,3.8888,172.84,172.78,5.7857]
[1747577039218,3.8888,172.84,172.75,5.7867]
[1747577039519,3.8888,172.84,172.74,1.8497]
[1747577039722,3.8888,172.84,172.76,5.7864]
[1747577040319,5.7854,172.8,172.76,5.7864]
[1747577040824,3.8888,172.84,172.76,5.7864]
[1747577041019,3.8888,172.84,172.75,5.7868]
[1747577041822,3.8888,172.84,172.74,5.7871]
[1747577042324,5.7859,172.78,172.74,5.7871]
[1747577042523,89.24,172.81,172.74,5.7871]
[1747577042827,5.7858,172.79,172.75,5.7867]
[1747577043122,89.24,172.81,172.75,5.7867]
[1747577043627,5.7857,172.79,172.75,5.7867]
[1747577044520,95.0251,172.81,172.76,5.7864]
[1747577044828,89.24,172.81,172.76,8.49259011]
[1747577045219,5.7844,172.83,172.79,5.7852]
[1747577045414,3.8888,172.84,172.74,8.49259011]
[1747577045926,5.785,172.81,172.77,5.7859]
[1747577046513,3.8888,172.84,172.74,8.49259011]
[1747577046822,3.8888,172.84,172.75,10.38499011]
[1747577047525,5.7851,172.81,172.76,5.7864]
[1747577047718,5.7851,172.81,172.75,10.38499011]
[1747577047920,3.8888,172.84,172.75,10.38499011]
[1747577048219,5.7853,172.8,172.76,5.7864]
[1747577049220,5.7849,172.81,172.77,5.7861]
[1747577050026,3.8888,172.84,172.76,5.7864]
[1747577050336,3.8888,172.84,172.75,10.38499011]
[1747577050519,92.8288,172.84,172.76,5.7864]
[1747577050723,92.8288,172.84,172.75,10.38499011]
[1747577051225,5.7851,172.81,172.77,5.7861]
[1747577052229,5.7852,172.8,172.77,5.7861]
[1747577052627,92.8288,172.84,172.76,5.7864]
[1747577052925,5.7854,172.8,172.76,5.7864]
[1747577053131,92.8288,172.84,172.75,10.38499011]
[1747577053734,5.7851,172.81,172.77,5.7861]
[1747577053940,92.8288,172.84,172.75,10.38499011]
[1747577054234,5.7854,172.8,172.76,5.7864]
[1747577054431,92.8288,172.84,172.75,8.49259011]
[1747577055132,92.8288,172.84,172.75,14.27929011]
[1747577055428,92.8288,172.84,172.76,5.7864]
[1747577055635,92.8288,172.84,172.75,8.49259011]
[1747577055924,5.7856,172.79,172.75,5.7867]
[1747577056433,92.8288,172.84,172.73,8.49259011]
[1747577056632,92.8288,172.84,172.75,5.7866]
[1747577056931,92.8288,172.84,172.73,8.49259011]
[1747577057132,5.7854,172.8,172.76,5.7865]
[1747577057532,92.8288,172.84,172.73,8.49259011]
[1747577057838,5.7857,172.79,172.75,5.7868]
[1747577058037,92.8288,172.84,172.72,90.18]
[1747577058836,5.7856,172.79,172.75,5.7866]
[1747577059037,92.8288,172.84,172.72,90.18]
[1747577059537,5.7858,172.79,172.75,5.7866]
[1747577059836,92.8288,172.84,172.72,90.18]
[1747577060037,5.7864,172.77,172.73,5.7874]
[1747577060334,92.8288,172.84,172.72,90.18]
[1747577060537,5.7859,172.78,172.72,98.67259011]
[1747577061037,5.7859,172.78,172.74,5.787]
[1747577061542,5.7859,172.78,172.75,5.7868]
[1747577062340,5.7856,172.79,172.75,5.7868]
[1747577062641,92.8288,172.84,172.75,5.7868]
[1747577063033,5.7858,172.79,172.75,5.7868]
[1747577063434,5.7858,172.79,172.72,98.67259011]
[1747577063635,92.8288,172.84,172.72,98.67259011]
[1747577063941,92.8288,172.84,172.77,5.7859]
[1747577064139,1.9072,172.84,172.75,8.49259011]
[1747577064437,90.16,172.85,172.75,8.49259011]
[1747577064643,90.16,172.85,172.75,95.95259011]
[1747577064845,90.16,172.85,172.76,3.7466]
[1747577065039,90.16,172.85,172.78,8.49259011]
[1747577065345,5.7832,172.86,172.78,8.49259011]
[1747577066536,5.7832,172.86,172.81,5.7847]
[1747577066742,5.7832,172.86,172.78,8.49259011]
[1747577067050,5.7835,172.85,172.78,8.49259011]
[1747577067240,5.7835,172.85,172.8,5.7851]
[1747577067537,89.2753,172.88,172.8,5.7851]
[1747577068045,89.2753,172.88,172.79,5.7854]
[1747577068242,5.7841,172.84,172.78,8.49259011]
[1747577068437,89.2753,172.88,172.78,8.49259011]
[1747577068639,89.2753,172.88,172.81,5.7845]
[1747577068840,5.7834,172.86,172.81,5.7845]
[1747577069544,5.7835,172.85,172.81,5.7845]
[1747577069947,89.2753,172.88,172.79,5.7852]
[1747577070152,5.7839,172.84,172.77,1.9522]
[1747577070353,89.2753,172.88,172.77,1.9522]
[1747577070647,5.7838,172.85,172.8,5.7851]
[1747577070847,5.7838,172.85,172.77,1.9522]
[1747577071037,5.7838,172.85,172.81,5.7846]
[1747577071547,5.7838,172.84,172.81,5.7846]
[1747577071751,89.2753,172.88,172.81,5.7846]
[1747577072052,5.7828,172.87,172.78,97.01259011]
[1747577072547,5.7828,172.87,172.83,5.7839]
[1747577073249,5.7828,172.87,172.78,97.01259011]
[1747577073250,5.7823,172.89,172.81,8.49259011]
[1747577073653,88.54,172.9,172.81,8.49259011]
[1747577073846,5.7828,172.88,172.81,8.49259011]
[1747577074151,88.54,172.9,172.81,8.49259011]
[1747577074351,88.54,172.9,172.82,5.7842]
[1747577074648,88.54,172.9,172.81,8.49259011]
[1747577075147,88.54,172.9,172.83,5.7841]
[1747577075553,5.7827,172.88,172.84,5.7838]
[1747577076053,5.7827,172.88,172.81,8.49259011]
[1747577076348,5.7823,172.89,172.81,8.49259011]
[1747577076560,247.36551362,172.95,172.85,5.7832]
[1747577076762,5.7822,172.89,172.85,5.7832]
[1747577076962,85.66,172.94,172.85,5.7832]
[1747577077167,85.66,172.94,172.84,5.7838]
[1747577077663,5.7827,172.88,172.84,5.7838]
[1747577078367,5.7827,172.88,172.85,5.7834]
[1747577078658,85.66,172.94,172.85,5.7834]
[1747577078863,5.7822,172.89,172.85,5.7834]
[1747577079168,85.66,172.94,172.84,5.7837]
[1747577079459,5.7829,172.87,172.81,85.66]
[1747577079657,85.66,172.94,172.81,85.66]
[1747577079859,8.49259011,172.93,172.81,85.66]
[1747577080160,5.7827,172.88,172.84,5.7836]
[1747577082664,5.783,172.87,172.84,5.7836]
[1747577083366,84.48,172.89,172.78,88.52]
[1747577084058,170.06,172.89,172.81,5.7848]
[1747577084266,3.9836,172.88,172.81,5.7848]
[1747577084861,5.7839,172.84,172.81,5.7848]
[1747577085168,5.7839,172.84,172.78,88.52]
[1747577085469,3.9836,172.88,172.8,5.7849]
[1747577085661,5.7842,172.83,172.78,88.52]
[1747577086157,5.7841,172.84,172.8,5.7849]
[1747577086361,5.9461,172.88,172.8,5.7849]
[1747577086659,5.9461,172.88,172.78,88.52]
[1747577087162,5.7837,172.85,172.81,5.7848]
[1747577087362,5.9461,172.88,172.81,5.7848]
[1747577088268,5.7839,172.84,172.81,5.7848]
[1747577089062,5.7836,172.85,172.81,5.7848]
[1747577089469,5.9461,172.88,172.81,5.7848]
[1747577090269,5.7842,172.83,172.8,5.7851]
[1747577090670,5.9461,172.88,172.78,88.52]
[1747577091372,5.7837,172.85,172.78,88.52]
[1747577091569,5.9461,172.88,172.78,88.52]
[1747577091972,5.7837,172.85,172.81,5.7846]
[1747577092172,5.7837,172.85,172.78,88.52]
[1747577092568,5.9461,172.88,172.78,88.52]
[1747577092569,5.9461,172.88,172.8,5.7848]
[1747577092774,5.9461,172.88,172.78,88.52]
[1747577093073,5.7844,172.83,172.8,5.7851]
[1747577093376,5.9461,172.88,172.8,5.7851]
[1747577093681,5.7839,172.84,172.8,5.7851]
[1747577093975,5.9461,172.88,172.78,88.52]
[1747577094174,5.7841,172.84,172.78,88.52]
[1747577094373,5.9461,172.88,172.79,5.7854]
[1747577094571,5.9461,172.88,172.78,88.52]
[1747577094970,5.9461,172.88,172.79,5.7854]
[1747577095271,5.7844,172.83,172.79,5.7854]
[1747577096678,5.7845,172.82,172.78,94.3057]
[1747577097871,5.7843,172.83,172.79,5.7853]
[1747577098372,82.34,172.84,172.79,5.7853]
[1747577098774,82.34,172.84,172.8,5.7851]
[1747577099576,5.7843,172.83,172.8,5.7851]
[1747577099976,82.34,172.84,172.79,5.7855]
[1747577100774,5.7843,172.83,172.8,5.7851]
[1747577100980,82.34,172.84,172.78,88.52]
[1747577101285,88.124,172.84,172.78,88.52]
[1747577102283,5.784,172.84,172.78,88.52]
[1747577103174,5.7836,172.85,172.78,88.52]
[1747577103481,88.6261,172.88,172.78,88.52]
[1747577103676,80.76,172.87,172.78,88.52]
[1747577103876,5.7836,172.85,172.81,5.7846]
[1747577104074,167.3633,172.88,172.78,88.52]
[1747577104300,167.3633,172.88,172.79,3.843]
[1747577104974,167.3633,172.88,172.75,5.32319389]
[1747577105281,5.7846,172.82,172.75,5.32319389]
[1747577105485,167.3633,172.88,172.75,5.32319389]
[1747577105782,5.7846,172.82,172.75,5.32319389]
[1747577106282,5.7846,172.82,172.77,5.7859]
[1747577106681,5.7849,172.81,172.77,5.7859]
[1747577106981,167.3633,172.88,172.78,5.7858]
[1747577107381,5.7848,172.82,172.78,5.7858]
[1747577108080,5.7848,172.81,172.78,5.7858]
[1747577108278,5.7848,172.81,172.79,4.68393391]
[1747577108677,5.7852,172.8,172.79,4.68393391]
[1747577109481,5.7858,172.79,172.73,86.523]
[1747577109780,5.7858,172.79,172.75,5.7868]
[1747577110287,5.7861,172.78,172.73,92.3102]
[1747577110488,80.02,172.83,172.73,92.3102]
[1747577110779,162.7,172.83,172.73,86.523]
[1747577110972,5.7861,172.78,172.74,5.7871]
[1747577111176,162.7,172.83,172.73,86.523]
[1747577111382,1.8675,172.82,172.73,86.523]
[1747577111686,1.8675,172.82,172.75,4.69442022]
[1747577112184,5.7864,172.77,172.75,4.69442022]
[1747577112483,3.7167,172.82,172.75,4.69442022]
[1747577112685,5.7865,172.77,172.75,4.69442022]
[1747577113380,5.7859,172.78,172.73,82.68]
[1747577113581,3.7167,172.82,172.73,82.68]
[1747577113778,5.7851,172.81,172.77,5.7861]
[1747577114088,83.7367,172.82,172.73,82.68]
[1747577114283,83.7367,172.82,172.76,5.7863]
[1747577114775,83.7367,172.82,172.73,82.68]
[1747577114983,5.7852,172.8,172.73,82.68]
[1747577115886,5.7852,172.8,172.76,5.7863]
[1747577116079,5.7849,172.81,172.73,82.68]
[1747577116387,5.7849,172.81,172.77,5.7859]
[1747577117088,5.7852,172.8,172.76,5.7864]
[1747577117985,5.7849,172.81,172.77,5.7861]
[1747577118291,80.0,172.82,172.77,5.7861]
[1747577118487,5.7858,172.79,172.75,5.7866]
[1747577118693,80.0,172.82,172.73,82.68]
[1747577119291,80.0,172.82,172.74,5.7869]
[1747577119494,80.0,172.82,172.73,82.68]
[1747577119697,80.0,172.82,172.74,4.68946263]
[1747577120995,5.7854,172.8,172.75,5.7865]
[1747577122191,5.7854,172.8,172.76,5.7864]
[1747577123695,85.7849,172.81,172.77,5.7861]
[1747577124293,5.7852,172.8,172.76,5.7864]
[1747577124600,5.7852,172.8,172.73,82.68]
[1747577124601,80.0,172.81,172.73,82.68]
[1747577125794,5.7857,172.79,172.73,82.68]
[1747577126193,80.0,172.81,172.74,4.69002798]
[1747577126383,5.7855,172.79,172.74,10.47712798]
[1747577126894,5.7855,172.79,172.74,4.69002798]
[1747577127094,5.7862,172.77,172.74,4.69002798]
[1747577127591,5.7862,172.77,172.7,15.681184]
[1747577128394,5.7862,172.77,172.73,5.7873]
[1747577129695,5.7859,172.78,172.74,5.7872]
[1747577130595,5.7862,172.77,172.74,5.7872]
[1747577130901,5.7862,172.77,172.73,5.7874]
[1747577131093,80.0,172.81,172.7,10.35799011]
[1747577131294,80.0,172.81,172.72,5.7877]
[1747577131595,5.7864,172.77,172.72,5.7877]
[1747577131896,5.7864,172.77,172.73,5.7874]
[1747577132295,5.7859,172.78,172.73,4.69256905]
[1747577132495,5.7859,172.78,172.74,5.787]
[1747577132703,80.0,172.81,172.73,4.69256905]
[1747577133087,80.0,172.81,172.74,5.7872]
[1747577133690,5.7855,172.79,172.74,5.7872]
[1747577134094,80.0,172.81,172.74,5.7872]
[1747577134296,80.0,172.81,172.73,5.7874]
[1747577134593,8.49259011,172.79,172.67,5.32319389]
[1747577134897,5.7868,172.75,172.67,5.32319389]
[1747577135097,85.7468,172.75,172.67,5.32319389]
[1747577135295,5.7872,172.74,172.67,5.32319389]
[1747577135492,5.7872,172.74,172.68,4.69332246]
[1747577135690,79.96,172.75,172.68,4.69332246]
[1747577135892,5.7875,172.73,172.68,4.69332246]
[1747577136394,5.7875,172.73,172.7,5.7885]
[1747577136592,5.7873,172.74,172.7,5.7885]
[1747577139403,79.96,172.75,172.66,100.15775138]
[1747577139598,79.96,172.75,172.66,80.0]
[1747577140609,5.7881,172.72,172.68,5.7889]
[1747577140901,79.96,172.75,172.66,80.0]
[1747577141405,5.7879,172.72,172.68,5.789]
[1747577142405,5.7876,172.73,172.69,5.7888]
[1747577142904,79.96,172.75,172.69,5.7888]
[1747577143206,5.7879,172.72,172.68,5.789]
[1747577144103,79.96,172.75,172.69,5.7888]
[1747577144507,79.96,172.75,172.66,80.0]
[1747577144694,85.7469,172.75,172.7,5.7882]
[1747577146205,5.7872,172.74,172.7,5.7882]
[1747577146505,5.7872,172.74,172.71,5.7881]
[1747577146708,85.7469,172.75,172.71,5.7881]
[1747577147106,85.7469,172.75,172.72,5.7878]
[1747577147307,85.7469,172.75,172.66,80.0]
[1747577148310,85.7469,172.75,172.7,5.7882]
[1747577148613,85.7469,172.75,172.66,80.0]
[1747577149412,85.7469,172.75,172.67,4.68908657]
[1747577150517,79.96,172.75,172.7,5.7882]
[1747577151011,5.7874,172.74,172.7,5.7882]
[1747577153708,5.7875,172.73,172.7,5.7882]
[1747577154916,5.7875,172.73,172.69,5.7888]
[1747577155528,85.7471,172.75,172.66,80.0]
[1747577156022,5.7865,172.76,172.72,5.7876]
[1747577156229,83.7183,172.77,172.72,5.7876]
[1747577156722,5.7867,172.76,172.71,5.7881]
[1747577156922,5.7867,172.76,172.66,80.0]
[1747577157621,89.5046,172.77,172.66,80.0]
[1747577157923,83.7183,172.77,172.66,80.0]
[1747577158327,5.7865,172.76,172.66,80.0]
[1747577158523,5.7865,172.76,172.67,4.69100762]
[1747577158917,5.7865,172.76,172.71,5.7879]
[1747577160028,5.7865,172.76,172.72,4.69100762]
[1747577160628,5.7865,172.76,172.72,10.47880762]
[1747577160830,89.4845,172.77,172.72,4.69100762]
[1747577161132,1.9541,172.78,172.73,5.7873]
[1747577161629,5.7864,172.77,172.73,5.7873]
[1747577162629,1.9541,172.78,172.67,79.74]
[1747577163127,5.7865,172.76,172.7,5.7884]
[1747577163429,5.7865,172.76,172.68,4.69316459]
[1747577164432,5.7865,172.76,172.72,5.7875]
[1747577164631,1.9541,172.78,172.72,5.7875]
[1747577164832,1.9541,172.78,172.69,4.69316459]
[1747577165528,5.7864,172.77,172.69,4.69316459]
[1747577165832,5.7866,172.76,172.72,5.7876]
[1747577166132,1.9541,172.78,172.7,4.69316459]
[1747577166434,5.787,172.75,172.71,5.7881]
[1747577166932,5.7866,172.76,172.72,5.7878]
[1747577167234,1.9541,172.78,172.72,5.7878]
[1747577167435,1.9541,172.78,172.73,4.69316459]
[1747577168430,5.7863,172.77,172.73,4.69316459]
[1747577168627,1.9541,172.78,172.73,4.69316459]
[1747577168826,1.9541,172.78,172.72,5.7878]
[1747577169023,5.7869,172.75,172.67,5.32319389]
[1747577169327,1.9541,172.78,172.67,5.32319389]
[1747577169532,5.7867,172.76,172.67,5.32319389]
[1747577169726,1.9541,172.78,172.67,5.32319389]
[1747577170437,1.9541,172.78,172.69,5.7886]
[1747577170630,1.9541,172.78,172.67,5.32319389]
[1747577171031,1.9541,172.78,172.69,5.7886]
[1747577172035,1.9541,172.78,172.7,4.69960814]
[1747577172334,79.62,172.77,172.7,4.69960814]
[1747577172836,5.787,172.75,172.71,5.7881]
[1747577173029,79.62,172.77,172.7,4.69960814]
[1747577173937,79.62,172.77,172.71,4.69960814]
[1747577174142,5.7875,172.73,172.71,4.69960814]
[1747577174439,79.62,172.77,172.71,4.69960814]
[1747577174639,5.7878,172.72,172.71,4.69960814]
[1747577176834,85.3478,172.72,172.71,4.69960814]
[1747577177537,79.56,172.72,172.63,7.21239389]
[1747577177934,5.7889,172.69,172.63,7.21239389]
[1747577178739,5.7889,172.69,172.64,4.70846684]
[1747577179535,5.7889,172.69,172.65,5.7899]
[1747577180138,5.7889,172.69,172.64,10.49886684]
[1747577180644,5.7892,172.68,172.64,10.49886684]
[1747577181344,5.7892,172.68,172.65,4.70846684]
[1747577182043,5.7888,172.7,172.65,4.70846684]
[1747577182237,79.56,172.72,172.65,4.70846684]
[1747577182644,5.7891,172.69,172.65,4.70846684]
[1747577183041,79.82,172.74,172.66,4.70846684]
[1747577183237,85.2676,172.73,172.66,13.20105695]
[1747577183443,79.48,172.73,172.66,13.20105695]
[1747577183643,3.8385,172.76,172.69,5.7886]
[1747577183943,3.8385,172.76,172.66,13.20105695]
[1747577184147,79.46,172.78,172.69,8.49259011]
[1747577184543,5.7862,172.77,172.69,10.50189011]
[1747577184743,83.1729,172.81,172.69,10.50189011]
[1747577185040,5.7868,172.76,172.71,5.7879]
[1747577185242,5.7868,172.76,172.7,4.70846684]
[1747577185441,83.1729,172.81,172.7,4.70846684]
[1747577185945,1.9338,172.8,172.7,4.70846684]
[1747577186144,5.7872,172.74,172.7,4.70846684]
[1747577186348,1.9338,172.8,172.71,4.70846684]
[1747577187239,1.9338,172.8,172.69,2.0093]
[1747577187647,5.787,172.75,172.7,5.7883]
[1747577187840,5.787,172.75,172.7,10.49142158]
[1747577188747,5.787,172.75,172.71,4.70312158]
[1747577189952,1.9338,172.8,172.71,4.70312158]
[1747577189953,5.7872,172.74,172.71,4.70312158]
[1747577190353,5.7869,172.75,172.71,4.70312158]
[1747577190755,5.7869,172.75,172.72,4.70312158]
[1747577191751,5.7869,172.75,172.73,4.70312158]
[1747577192347,5.7866,172.76,172.73,4.70312158]
[1747577192556,1.9338,172.8,172.73,4.70312158]
[1747577193557,5.7869,172.75,172.73,4.70312158]
[1747577193955,1.9338,172.8,172.73,4.70312158]
[1747577194151,5.7871,172.75,172.73,4.70312158]
[1747577194658,5.7871,172.75,172.74,4.70312158]
[1747577197054,1.9338,172.8,172.74,4.70312158]
[1747577197557,5.7868,172.75,172.74,4.70312158]
[1747577197854,5.7868,172.75,172.69,2.0093]
[1747577199554,1.9338,172.8,172.7,4.70175834]
[1747577200158,5.7877,172.73,172.7,4.70175834]
[1747577200351,1.9338,172.8,172.7,4.70175834]
[1747577200551,158.68,172.76,172.7,4.70175834]
[1747577201558,158.68,172.76,172.67,5.7892]
[1747577201958,5.7882,172.72,172.67,5.7892]
[1747577202960,5.7882,172.72,172.68,10.49459869]
[1747577203157,158.68,172.76,172.68,10.49459869]
[1747577203158,5.7876,172.73,172.68,10.49459869]
[1747577203353,158.68,172.76,172.68,4.70549869]
[1747577203757,5.7881,172.72,172.68,4.70549869]
[1747577204459,5.7881,172.72,172.68,10.49459869]
[1747577204864,158.68,172.76,172.68,4.70549869]
[1747577205059,158.68,172.76,172.69,4.70549869]
[1747577205452,158.68,172.76,172.69,10.49419869]
[1747577205759,5.7874,172.74,172.69,10.49419869]
[1747577206562,5.7876,172.73,172.69,10.49419869]
[1747577208268,5.7873,172.74,172.69,10.49419869]
[1747577209071,5.7873,172.74,172.7,4.70549869]
[1747577209573,5.7875,172.73,172.7,4.70549869]
[1747577209868,158.54,172.78,172.7,4.70549869]
[1747577210270,5.7874,172.74,172.7,4.70549869]
[1747577210972,5.7874,172.74,172.71,4.70549869]
[1747577211161,5.7869,172.75,172.71,4.70549869]
[1747577212076,79.46,172.78,172.71,4.70549869]
[1747577212282,79.46,172.78,172.72,4.70549869]
[1747577213974,5.7871,172.75,172.72,4.70549869]
[1747577214174,5.7871,172.75,172.73,4.70549869]
[1747577215183,79.46,172.78,172.73,4.70549869]
[1747577215371,79.46,172.78,172.69,7.32566422]
[1747577215684,5.7864,172.77,172.73,5.7873]
[1747577215879,3.7129,172.81,172.69,7.32566422]
[1747577216386,1.878,172.81,172.69,7.32566422]
[1747577216884,5.7861,172.78,172.69,7.32566422]
[1747577217485,5.7861,172.78,172.74,5.787]
[1747577218284,5.7862,172.77,172.72,79.0]
[1747577218484,1.878,172.81,172.72,79.0]
[1747577218686,1.878,172.81,172.73,4.70243112]
[1747577219386,5.7865,172.76,172.73,4.70243112]
[1747577219686,1.878,172.81,172.73,4.70243112]
[1747577220188,5.7871,172.75,172.7,5.7883]
[1747577220577,5.7871,172.75,172.71,5.7881]
[1747577221390,5.7871,172.75,172.72,4.70193481]
[1747577222890,5.7871,172.75,172.73,4.70193481]
[1747577224489,5.7871,172.75,172.7,5.7884]
[1747577224787,5.7871,172.75,172.71,5.7881]
[1747577224987,5.7866,172.76,172.71,5.7881]
[1747577225888,5.7866,172.76,172.72,4.70714063]
[1747577226088,1.878,172.81,172.73,5.7875]
[1747577226286,1.878,172.81,172.72,4.70714063]
[1747577226681,5.7857,172.79,172.74,5.7869]
[1747577226884,1.878,172.81,172.74,5.7869]
[1747577227393,5.7855,172.79,172.74,5.7869]
[1747577227589,5.7855,172.79,172.75,10.49384063]
[1747577227788,5.7855,172.79,172.75,4.70714063]
[1747577228584,5.7858,172.78,172.75,4.70714063]
[1747577229087,5.7855,172.79,172.76,4.70714063]
[1747577230389,5.786,172.78,172.76,4.70714063]
[1747577230582,5.786,172.78,172.74,5.7869]
[1747577231579,5.7855,172.79,172.74,5.7869]
[1747577232184,154.80003002,172.84,172.74,79.0]
[1747577232686,154.80003002,172.84,172.75,4.71663623]
[1747577232887,5.7846,172.82,172.77,5.7859]
[1747577233292,154.80003002,172.84,172.77,5.7859]
[1747577233492,154.80003002,172.84,172.76,5.7864]
[1747577233689,154.80003002,172.84,172.78,4.71663623]
[1747577234289,5.7851,172.81,172.78,4.71663623]
[1747577235096,5.7852,172.8,172.78,4.71663623]
[1747577235687,5.7852,172.8,172.79,4.71663623]
[1747577235893,154.80003002,172.84,172.79,4.71663623]
[1747577236895,154.80003002,172.84,172.75,84.34676422]
[1747577237601,163.29262013,172.84,172.75,5.34676422]
[1747577238097,5.7865,172.76,172.72,5.7878]
[1747577238702,5.7868,172.75,172.71,90.11486422]
[1747577239198,5.7868,172.75,172.72,4.710798]
[1747577240402,78.54,172.81,172.72,4.710798]
[1747577241301,78.54,172.81,172.73,4.710798]
[1747577241502,5.786,172.78,172.73,10.498098]
[1747577241805,78.54,172.81,172.73,4.710798]
[1747577241999,5.7863,172.77,172.73,4.710798]
[1747577242299,78.54,172.81,172.73,4.710798]
[1747577242701,78.54,172.81,172.74,4.710798]
[1747577244503,5.7868,172.75,172.74,4.710798]